[Event "12th National Schools-ch 2024"]
[Site "Gyan Bhawan Patna"]
[Date "2024.02.10"]
[Round "9.7"]
[White "Aadya Gupta"]
[Black "Drishtee Ghosh"]
[Result "1/2-1/2"]
[ECO "E00"]
[WhiteElo "1544"]
[BlackElo "1605"]
[Annotator "NA RC"]
[PlyCount "81"]
[EventDate "2024.02.05"]
[EventCountry "IND"]
[SourceTitle "playchess.com"]
[Source "ChessBase"]
[SourceQuality "1"]
[TimeControl "5400+30"]

1. d4 {[%emt 0:00:02]} Nf6 {[%emt 0:00:02]} 2. c4 {[%emt 0:00:01]} e6 {[%emt 0:00:02]} 3. a3 {[%emt 0:00:01]} d5 {[%emt 0:00:25]} 4. Nc3 {[%emt 0:00:08]} dxc4 {[%emt 0:00:16]} 5. e4 {[%emt 0:03:35]} c5 {[%emt 0:01:40]} 6. Nf3 {[%emt 0:05:41]} a6 {[%emt 0:08:28]} 7. Bxc4 {[%emt 0:02:05]} b5 {[%emt 0:02:56]} 8. Bd3 {[%emt 0:01:27]} cxd4 {[%emt 0:02:27]} 9. Nxd4 {[%emt 0:01:01]} Bc5 {[%emt 0:01:02]} 10. Nf3 {[%emt 0:02:08]} e5 {[%emt 0:08:50]} 11. Qc2 {[%emt 0:01:39]} Nbd7 {[%emt 0:06:21]} 12. Bg5 {[%emt 0:02:57]} Be7 {[%emt 0:02:56]} 13. O-O {[%emt 0:04:35]} O-O {[%emt 0:01:24]} 14. Rfd1 {[%emt 0:02:01]} Bb7 {[%emt 0:03:21]} 15. Bxf6 {[%emt 0:03:31]} Bxf6 {[%emt 0:00:15]} 16. b4 {[%emt 1:07:38]} Rc8 {[%emt 0:08:34]} 17. Qb3 {[%emt 0:00:00]} Qc7 {[%emt 0:10:09]} 18. Rac1 {[%emt 0:00:00]} Rfd8 {[%emt 0:07:42]} 19. Qb2 {[%emt 0:00:00]} Qb8 {[%emt 0:01:59]} 20. h3 {[%emt 0:00:00]} Nb6 {[%emt 0:02:26]} 21. Qe2 {[%emt 0:00:00]} Be7 {[%emt 0:03:56]} 22. Qe3 {[%emt 0:00:00]} Bc6 {[%emt 0:06:39]} 23. Ne2 {[%emt 0:00:00]} Na4 {[%emt 0:04:32]} 24. Rc2 {[%emt 0:00:00]} a5 {[%emt 0:02:35]} 25. Rb1 {[%emt 0:00:00]} axb4 {[%emt 0:01:37]} 26. axb4 {[%emt 0:00:00]} Bd7 {[%emt 0:00:56]} 27. Ne1 {[%emt 0:00:00]} h6 {[%emt 0:02:41]} 28. Rxc8 {[%emt 0:00:16]} Rxc8 {[%emt 0:00:43]} 29. Bc2 {[%emt 0:01:05]} Nb6 {[%emt 0:01:24]} 30. Bd3 {[%emt 0:02:20]} Nc4 {[%emt 0:01:13]} 31. Bxc4 {[%emt 0:00:53]} Rxc4 {[%emt 0:00:02]} 32. Nd3 {[%emt 0:01:01]} Qa8 {[%emt 0:01:04]} 33. Nxe5 {[%emt 0:01:19]} Qxe4 {[%emt 0:01:45]} 34. Qxe4 {[%emt 0:00:14]} Rxe4 {[%emt 0:00:01]} 35. Nxd7 {[%emt 0:00:04]} Rxe2 {[%emt 0:00:06]} 36. Nc5 {[%emt 0:00:48]} Rc2 {[%emt 0:00:17]} 37. Nd3 {[%emt 0:00:35]} Rc3 {[%emt 0:08:14]} 38. Ne5 {[%emt 0:01:43]} g5 {[%emt 0:00:00]} 39. Ng4 {[%emt 0:00:26]} Kg7 {[%emt 0:00:00]} 40. Ne3 {[%emt 0:00:04]} Bf6 {[%emt 0:00:00]} 41. Kf1 {[%emt 0:00:57]} 1/2-1/2

[Event "12th National Schools-ch 2024"]
[Site "Gyan Bhawan Patna"]
[Date "2024.02.10"]
[Round "9.8"]
[White "Shreyas Raj"]
[Black "Pranay Akula"]
[Result "1/2-1/2"]
[ECO "B22"]
[WhiteElo "1644"]
[BlackElo "1712"]
[Annotator "NA RC"]
[PlyCount "60"]
[EventDate "2024.02.05"]
[EventCountry "IND"]
[SourceTitle "playchess.com"]
[Source "ChessBase"]
[SourceQuality "1"]
[TimeControl "5400+30"]

1. e4 {[%emt 0:00:03]} c5 {[%emt 0:00:03]} 2. c3 {[%emt 0:00:11]} Nf6 {[%emt 0:00:07]} 3. e5 {[%emt 0:00:07]} Nd5 {[%emt 0:00:03]} 4. d4 {[%emt 0:00:14]} cxd4 {[%emt 0:00:04]} 5. cxd4 {[%emt 0:00:14]} d6 {[%emt 0:00:05]} 6. Nf3 {[%emt 0:00:18]} Nc6 {[%emt 0:00:13]} 7. Bc4 {[%emt 0:00:33]} Nb6 {[%emt 0:00:07]} 8. Bb5 {[%emt 0:00:20]} dxe5 {[%emt 0:00:07]} 9. Nxe5 {[%emt 0:00:29]} Bd7 {[%emt 0:00:07]} 10. Nxd7 {[%emt 0:02:48]} Qxd7 {[%emt 0:02:18]} 11. O-O {[%emt 0:01:14]} e6 {[%emt 0:02:24]} 12. Nc3 {[%emt 0:01:31]} Rd8 {[%emt 0:02:15]} 13. Be3 {[%emt 0:01:44]} Be7 {[%emt 0:00:40]} 14. Qf3 {[%emt 0:05:34]} O-O {[%emt 0:00:21]} 15. Rfd1 {[%emt 0:01:23]} a6 {[%emt 0:06:14]} 16. Bxc6 {[%emt 1:21:47]} bxc6 {[%emt 0:03:33]} 17. Rac1 {[%emt 0:00:00]} Nd5 {[%emt 0:07:41]} 18. Kh1 {[%emt 0:00:00]} Kh8 {[%emt 0:00:07]} 19. Kg1 {[%emt 0:00:00]} Kg8 {[%emt 0:00:02]} 20. Kh1 {[%emt 0:00:00]} Kh8 {[%emt 0:00:03]} 21. Kg1 {[%emt 0:00:00]} Kg8 {[%emt 0:00:03]} 22. Kh1 {[%emt 0:00:00]} Kh8 {[%emt 0:00:03]} 23. Nxd5 {[%emt 0:00:00]} cxd5 {[%emt 0:00:11]} 24. Qe2 {[%emt 0:00:00]} a5 {[%emt 0:00:09]} 25. Rc2 {[%emt 0:00:00]} Rc8 {[%emt 0:00:10]} 26. Rdc1 {[%emt 0:00:00]} Bd6 {[%emt 0:00:18]} 27. h3 {[%emt 0:00:00]} h6 {[%emt 0:00:16]} 28. Qa6 {[%emt 0:00:00]} Ra8 {[%emt 0:00:48]} 29. Qc6 {[%emt 0:00:00]} Qe7 {[%emt 0:00:21]} 30. Qa4 {[%emt 0:00:00]} Rfb8 {[%emt 0:00:08]} 1/2-1/2

[Event "12th National Schools-ch 2024"]
[Site "Gyan Bhawan Patna"]
[Date "2024.02.10"]
[Round "9.9"]
[White "Bhillva Nilaya Kondari Eswara "]
[Black "Sindhusree K"]
[Result "1/2-1/2"]
[ECO "B52"]
[WhiteElo "1843"]
[BlackElo "1445"]
[Annotator "NA RC"]
[PlyCount "69"]
[EventDate "2024.02.05"]
[EventCountry "IND"]
[SourceTitle "playchess.com"]
[Source "ChessBase"]
[SourceQuality "1"]
[TimeControl "5400+30"]

1. e4 {[%emt 0:00:17]} c5 {[%emt 0:00:10]} 2. Nf3 {[%emt 0:00:20]} d6 {[%emt 0:00:16]} 3. Bb5+ {[%emt 0:00:17]} Bd7 {[%emt 0:00:07]} 4. Bxd7+ {[%emt 0:00:10]} Qxd7 {[%emt 0:00:01]} 5. c4 {[%emt 0:00:39]} Nc6 {[%emt 0:00:34]} 6. d4 {[%emt 0:02:44]} cxd4 {[%emt 0:01:31]} 7. Nxd4 {[%emt 0:00:14]} Nf6 {[%emt 0:01:13]} 8. Nc3 {[%emt 0:00:31]} e6 {[%emt 0:02:20]} 9. Be3 {[%emt 0:02:55]} Be7 {[%emt 0:01:42]} 10. O-O {[%emt 0:01:20]} O-O {[%emt 0:00:19]} 11. f3 {[%emt 0:04:22]} Rac8 {[%emt 0:04:33]} 12. Nxc6 {[%emt 0:09:28]} bxc6 {[%emt 0:00:34]} 13. Qd3 {[%emt 0:03:30]} Qb7 {[%emt 0:02:44]} 14. b3 {[%emt 0:02:32]} Rfd8 {[%emt 0:00:06]} 15. Rac1 {[%emt 0:03:56]} d5 {[%emt 0:09:38]} 16. e5 {[%emt 0:09:48]} Ne8 {[%emt 0:00:23]} 17. cxd5 {[%emt 0:01:09]} cxd5 {[%emt 1:12:49]} 18. Ne2 {[%emt 0:06:29]} Ba3 {[%emt 0:00:00]} 19. Rxc8 {[%emt 0:05:27]} Rxc8 {[%emt 0:00:00]} 20. f4 {[%emt 0:03:06]} Nc7 {[%emt 0:00:00]} 21. f5 {[%emt 0:09:39]} Qb5 {[%emt 0:00:00]} 22. Qc2 {[%emt 0:02:58]} Qd7 {[%emt 0:00:00]} 23. f6 {[%emt 0:02:47]} g6 {[%emt 0:00:00]} 24. Qd2 {[%emt 0:02:24]} Na6 {[%emt 0:00:00]} 25. Nd4 {[%emt 0:05:10]} Nb4 {[%emt 0:00:00]} 26. Kh1 {[%emt 0:06:44]} a6 {[%emt 0:00:00]} 27. Bg1 {[%emt 0:08:05]} Nc6 {[%emt 0:00:00]} 28. Nxc6 {[%emt 0:00:21]} Qxc6 {[%emt 0:00:00]} 29. b4 {[%emt 0:00:39]} Bc1 {[%emt 0:00:00]} 30. Qe1 {[%emt 0:03:09]} Qc4 {[%emt 0:00:00]} 31. Bc5 {[%emt 0:02:29]} Bh6 {[%emt 0:00:00]} 32. Rf3 {[%emt 0:02:09]} Qc1 {[%emt 0:00:00]} 33. Qxc1 {[%emt 0:00:20]} Bxc1 {[%emt 0:00:00]} 34. a4 {[%emt 0:00:33]} Bb2 {[%emt 0:00:00]} 35. Re3 {[%emt 0:01:19]} 1/2-1/2

[Event "12th National Schools-ch 2024"]
[Site "Gyan Bhawan Patna"]
[Date "2024.02.10"]
[Round "9.10"]
[White "Godhani Maharth"]
[Black "Shadhursshaan R"]
[Result "1/2-1/2"]
[ECO "D02"]
[WhiteElo "1496"]
[BlackElo "2058"]
[Annotator "TA"]
[PlyCount "62"]
[EventDate "2024.02.05"]
[EventCountry "IND"]
[SourceTitle "playchess.com"]
[Source "ChessBase"]
[SourceQuality "1"]
[TimeControl "5400+30"]

{[%evp 18,62,17,0,38,30,23,30,17,20,17,0,38,18,55,38,34,41,41,17,25,0,33,31,27,12,41,4,49,34,54,41,30,9,37,0,36,27,30,0,24,0,12,0,49,0,31]} 1. Nf3 Nf6 2. Ng1 Ng8 3. Nf3 Nf6 4. Ng1 Ng8 5. d4 d5 6. Nf3 Nf6 7. e3 e6 8. Bd3 Bd6 9. Ng1 Ng8 10. Nf3 c6 11. b3 b6 12. Bb2 Bb7 {White has an edge.} 13. Nbd2 Nd7 14. a3 a6 15. Qe2 Qe7 16. Ne5 Ngf6 17. O-O O-O 18. f3 a5 19. f4 c5 20. a4 Rac8 21. Rab1 Rb8 22. Ba1 Ba8 23. Rbd1 Rbd8 24. Bc3 Bb7 25. Rb1 Ra8 26. Bb2 Rab8 27. Rbe1 Rbc8 28. Ba1 Ba8 29. Rb1 Bb7 30. Bb2 Ba8 (30... Rb8 $11) 31. Rbe1 Bb7 {Weighted Error Value: White=0.19 (very precise) /Black=0.18 (very precise) .  Mistake:       	---       	Black=1      Inaccurate:     	White=2     	Black=6      OK:         	White=3     	Black=3} 1/2-1/2